Cogmind - Beta 15 @@@ ROGUE MODE // 2025.07.29 @ 11:59:01 Player: Kyzrati Result: Defending 0bPrime! Performance ------------- Evolutions (8) 4000 Regions Visited (21) 4200 Robots Destroyed (295) 1475 Value Destroyed (14531) 14531 Prototype IDs (120) 2400 Alien Tech Used (6) 1200 Bonus (21499) 21499 TOTAL SCORE: 49305 Bonus ------- High Alert Combat Kills 2977 Follower Combat Kills 631 Registered with UFD 300 Met Optimus in HQ 500 Met Zhirov 300 MAIN.C Attacked Warlord 500 Warlord Defense Kills 2532 Met Optimus at Protoforge 1000 Completed Drillbomb Mission10000 Win 3000 Friendly Fire -241 Cogmind --------- Core Integrity 539/1450 Matter 194/300 Energy 485/575 System Corruption 21% Temperature Cool (0) Movement Immobile (Siege) Ox2 Location 0bPrime Parts ------- > --- POWER (2) -------- Reinforced Antimatter Reactor Improved Quantum Reactor > --- PROPULSION (8) --- Heavy Shield Leg Overtuned Huge Scrapsphere (fused) Overtuned Huge Scrapsphere Overtuned Huge Scrapsphere > --- UTILITY (9) ------ 0bPrime Scrap Suit High-capacity Storage Unit Spectral Analyzer Long-range Sensor Array Makeshift Medium Armor Plating Makeshift Heavy Armor Plating AEGIS Remote Shield > --- WEAPON (4) ------- Enhanced Nova Cannon Concept XC Strikerail Concept XC Strikerail Power Sword > --- INVENTORY (20) --- Antimatter Reactor Experimental Heat Sink Advanced Cooling System Advanced Transmission Jammer Makeshift Heavy Armor Plating Concept XC Strikerail Overtuned Linear Accelerator Peak State ------------ > --- POWER ------------ Vortex Chain Reactor > --- PROPULSION ------- Combat Gravmag System Combat Gravmag System Combat Gravmag System Improved Antigrav System Improved Antigrav System Improved Antigrav System Combat Antigrav System Combat Antigrav System > --- UTILITY ---------- High-capacity Storage Unit Spectral Analyzer Long-range Sensor Array Advanced Signal Interpreter Advanced Target Analyzer Advanced Transmission Jammer Heavy Regenerative Plating AEGIS Remote Shield > --- WEAPON ----------- Concept XC Strikerail Concept XC Strikerail Concept XC Strikerail Power Sword > --- INVENTORY -------- Cooled Antigrav System Advanced Cooling System Large Storage Unit Subatomic Replicator Enhanced Nova Cannon Fusion Bomb Launcher UFD Drillbomb [Rating: 197] Favorites ----------- Power Light Angular Momentum Engine Engine Light Angular Momentum Engine Power Core Reinforced Fission Core Reactor Light Antimatter Reactor Propulsion Combat Gravmag System Treads Light Treads Leg Advanced Myomer Leg Wheel Overtuned Huge Scrapsphere Hover Unit Combat Gravmag System Flight Unit Cooled Nuclear Pulse Thruster Utility Seismic Detector Device Seismic Detector Storage High-capacity Storage Unit Processor Spectral Analyzer Hackware Advanced Hacking Suite Protection Centrium Light Armor Plating Weapon Improved Assault Rifle Energy Gun Overtuned Beamcaster Energy Cannon Enhanced Nova Cannon Ballistic Gun Improved Assault Rifle Ballistic Cannon Enhanced Gauss Cannon Launcher Heavy Missile Launcher Special Weapon Mining Laser Impact Weapon Power Maul Slashing Weapon Power Sword Piercing Weapon Lance Build | -11 -10 -9 -9 -9 -9 -6 -5 -5 -5 -5 -4 -4 -4 -4 -4 -3 -3 -3 -2 -2 -2 ------- Run | Yrd Mat Mat Sto Rec Scr Fac Fac Upp Upp Zhi Pro Fac Upp Upp War Pro Res Qua Res Tes Frg Slots Evolved 16 | . . 2 . . . 6 2 . . . . 2 . . . . 2 . 2 . . Power 1 | . . . . . . 1 . . . . . . . . . . . . . . . Propulsion 6 | . . 1 . . . 1 2 . . . . 1 . . . . . . 1 . . Utility 7 | . . . . . . 4 . . . . . 1 . . . . 2 . . . . Weapon 2 | . . 1 . . . . . . . . . . . . . . . . 1 . . Parts Attached 252 | 8 8 13 6 8 . 33 21 5 2 6 . 45 4 . 10 . 27 1 11 5 39 Power 36 | 1 3 2 1 1 . 6 3 . . 1 . 6 . . 3 . 5 . 1 . 3 Engine 14 | 1 2 2 1 1 . 4 1 . . . . 1 . . 1 . . . . . . Core 7 | . 1 . . . . 2 2 . . . . 2 . . . . . . . . . Reactor 15 | . . . . . . . . . . 1 . 3 . . 2 . 5 . 1 . 3 Propulsion 63 | 2 . 5 1 3 . 7 4 . 1 3 . 16 . . 2 . 4 . 3 . 12 Treads 17 | 2 . 5 . 2 . 5 1 . . . . 2 . . . . . . . . . Leg 15 | . . . . . . . . . 1 3 . 4 . . . . . . . . 7 Wheel 7 | . . . . . . 2 . . . . . 2 . . . . . . . . 3 Hover 21 | . . . . 1 . . 1 . . . . 8 . . 2 . 4 . 3 . 2 Flight 3 | . . . 1 . . . 2 . . . . . . . . . . . . . . Utility 101 | 2 3 3 1 2 . 13 9 3 1 2 . 17 4 . 3 . 13 . 6 4 15 Device 49 | 1 1 . . . . 8 5 3 . . . 9 3 . 1 . 7 . 2 2 7 Storage 7 | 1 1 . 1 . . . . . . 1 . 1 . . . . 1 . . . 1 Processor 15 | . . . . . . 2 1 . 1 . . 3 1 . 1 . 2 . 1 . 3 Hackware 9 | . . . . . . 1 2 . . . . 2 . . . . 2 . 1 1 . Protection 21 | . 1 3 . 2 . 2 1 . . 1 . 2 . . 1 . 1 . 2 1 4 Artifact . | . . . . . . . . . . . . . . . . . . . . . . Weapon 52 | 3 2 3 3 2 . 7 5 2 . . . 6 . . 2 . 5 1 1 1 9 Energy Gun 10 | 2 1 1 . 1 . 1 . . . . . 1 . . . . . . . 1 2 Energy Cannon 3 | . . . . . . . . . . . . . . . 1 . 1 . 1 . . Ballistic Gun 22 | 1 . 2 3 1 . 4 1 1 . . . 2 . . . . 2 . . . 5 Ballistic Cannon 6 | . . . . . . . 3 . . . . 1 . . . . 1 . . . 1 Launcher 6 | . . . . . . 1 1 . . . . 1 . . 1 . 1 . . . 1 Special Weapon 1 | . 1 . . . . . . . . . . . . . . . . . . . . Impact Weapon 1 | . . . . . . 1 . . . . . . . . . . . . . . . Slashing Weapon 2 | . . . . . . . . . . . . 1 . . . . . 1 . . . Piercing Weapon 1 | . . . . . . . . 1 . . . . . . . . . . . . . Special Melee Weapon . | . . . . . . . . . . . . . . . . . . . . . . Unidentified Prototypes 32 | . . . 2 3 . 1 1 . . 4 . 1 . . 6 . 3 1 . 4 6 Corrupted Parts 2 | . . . . . . . 1 . . . . 1 . . . . . . . . . System Corruption 15 | . . . . . . . 4 . . . . 11 . . . . . . . . . Parts Lost 54 | . . . . 1 . 6 10 1 . . 1 17 . . . . 8 . . . 10 Power 7 | . . . . . . 2 . . . . . 3 . . . . 1 . . . 1 Propulsion 8 | . . . . . . 1 4 . . . . 1 . . . . 1 . . . 1 Utility 21 | . . . . . . 1 4 1 . . 1 8 . . . . 4 . . . 2 Weapon 18 | . . . . 1 . 2 2 . . . . 5 . . . . 2 . . . 6 Highest Loss Streak 5 | . . . . 1 . 4 4 1 . . 1 3 . . . . 5 . . . 4 To Critical Strikes 2 | . . . . . . . . . . . . 1 . . . . . . . . 1 Average Backups 14 | 2 8 14 17 19 18 17 16 16 16 16 17 11 13 14 13 13 13 13 14 14 9 Power . | . . . 1 . . . . . . . . . . . . 1 1 1 . . . Propulsion 2 | 1 3 2 2 2 2 2 1 . . 1 2 2 4 4 3 3 2 4 2 2 . Utility 6 | . 4 8 8 7 6 7 10 10 10 9 8 5 5 7 6 6 6 3 6 4 3 Weapon 4 | . 1 2 5 7 6 6 4 5 6 5 5 2 1 1 1 1 1 2 2 3 4 Tool/Special . | . . . . . . . . . . . . . . . . . . . . . . Unused Backups 55 | . . 9 4 1 9 6 1 2 . 1 . 6 . . 3 . 3 1 1 2 6 Power 6 | . . 2 . . . 3 . . . . . . . . . . . . . . 1 Propulsion 11 | . . 3 . . . . . . . . . 2 . . 2 . 1 1 1 . 1 Utility 22 | . . 4 . 1 2 1 1 2 . 1 . 4 . . 1 . 1 . . 1 3 Weapon 14 | . . . 4 . 6 2 . . . . . . . . . . 1 . . . 1 Tool/Special 2 | . . . . . 1 . . . . . . . . . . . . . . 1 . Average Slot Usage (%) 87 | . 100 99 99 99 100 84 79 74 77 84 86 85 86 89 90 89 92 88 88 83 75 Engine 4 | . 7 11 10 10 11 10 4 5 5 5 5 1 . . 3 . . . . . . Core 1 | . 6 . . . . 1 5 5 5 4 5 2 . . . . . . . . . Reactor 2 | . . . . . . . . . . . . 5 5 5 5 10 8 9 4 4 4 Treads 9 | . 28 32 32 33 33 12 12 . . . . 2 . . . . . . . . . Leg 2 | . . . . . . . . . 1 12 23 13 . . . . . . . . 3 Wheel 2 | . . . . . . 5 5 5 5 5 5 3 . . . . . . . . 6 Hover 12 | . . . . . . . . 5 5 2 . 10 36 36 36 36 32 33 34 34 16 Device 13 | . 13 10 9 6 . 16 14 20 20 16 14 11 21 21 17 15 17 22 16 16 11 Storage 6 | . 14 11 11 11 11 6 5 5 5 5 5 4 5 5 5 5 4 4 4 4 4 Processor 4 | . . . . . . 3 4 . 2 5 5 8 5 5 5 5 7 4 7 8 9 Protection 3 | . . . 1 4 11 4 1 . . . 1 3 . . 3 5 3 . 1 . 4 Energy Gun 2 | . 14 14 5 . . . 1 . . . . 3 2 5 1 . . . . . 2 Ballistic Gun 9 | . 11 15 25 32 33 14 4 7 11 11 10 4 . . . . 1 . . . 4 Ballistic Cannon 1 | . . . . . . . 4 3 . . 1 2 5 5 4 . 2 . . . . Impact Weapon 1 | . . . . . . 4 3 2 . . 1 3 . . . . . . . . . Slashing Weapon 1 | . . . . . . . . . . . . . 5 5 3 5 4 5 8 8 2 Peak Build Rating 197 | 7 10 17 23 36 35 83 89 82 85 99 99 126 105 105 131 135 159 158 186 181 197 Average Rating 97 | 5 8 15 19 23 31 70 80 76 82 91 98 107 100 104 116 128 141 140 179 170 171 On Entrance 84 | . 7 8 17 21 31 35 83 77 82 85 99 99 95 105 104 130 122 151 158 180 178 Naked Turns . | . . . . . . . . . . . . . . . . . . . . . . Heaviest Build 153 | 12 29 40 62 62 60 96 107 111 93 92 113 116 61 60 92 94 100 91 116 106 153 Greatest Support 115 | 40 40 60 60 63 63 20 78 20 20 75 20 115 84 84 97 97 104 102 112 112 112 Greatest Overweight (x) 5 | . . . 1 1 . 4 5 5 4 4 5 5 . . . . 1 . 1 . 3 Average Overweight (x) 1 | . . . . . . 3 3 4 4 3 4 1 . . . . . . . . . Largest Inventory Capacity 20 | 8 15 15 20 20 20 20 20 20 20 20 20 20 15 15 15 15 15 15 15 15 20 Average Capacity 17 | 7 11 15 18 20 20 20 20 20 20 20 20 14 15 15 15 15 15 15 15 15 18 Most Carried 20 | 4 13 15 20 20 20 20 20 20 20 20 20 20 15 15 15 15 15 15 15 15 20 Average Carried 16 | 2 8 14 17 19 19 19 19 19 19 19 19 12 14 15 14 14 14 14 14 14 15 Final Capacity 20 | 8 15 15 20 20 20 20 20 20 20 20 20 15 15 15 15 15 15 15 15 15 20 Final Carried 20 | 4 13 15 20 20 20 20 20 20 20 20 20 14 15 15 15 15 15 15 15 15 8 Class Distribution -------------------- 34% | Mutant 11% | Scavenger-Scrapper 9% | Tank 9% | Scrapper 7% | Scavenger-Mutant 6% | Gunner 4% | Scout 3% | Ninja Dominant Class ---------------- Mutant | -10/Materials Gunner | -9/Materials Gunner | -9/Storage Gunner | -9/Recycling Tank | -9/Scraptown Scrapper | -6/Factory Scrapper | -5/Factory Mutant | -5/Upper Caves Mutant | -5/Upper Caves Mutant | -5/Zhirov Mutant | -4/Proximity Caves Mutant | -4/Factory Scavenger-Mutant | -4/Upper Caves Scavenger-Mutant | -4/Upper Caves Skirmisher | -4/Warlord Mutant | -3/Proximity Caves Mutant | -3/Research Mutant | -3/Quarantine Scout | -2/Research Ninja | -2/Testing Scavenger-Scrapper | -2/Protoforge Resources | -11 -10 -9 -9 -9 -9 -6 -5 -5 -5 -5 -4 -4 -4 -4 -4 -3 -3 -3 -2 -2 -2 ----------- Run | Yrd Mat Mat Sto Rec Scr Fac Fac Upp Upp Zhi Pro Fac Upp Upp War Pro Res Qua Res Tes Frg Matter Collected 10916 | 274 241 296 276 98 38 1579 812 650 120 70 128 1341 145 44 210 143 720 . 445 285 3001 Remotely 529 | . . . . . . . 274 41 . . . 214 . . . . . . . . . Salvage Created 13952 | 79 444 455 344 . . 2209 1355 512 10 240 211 1941 74 . 655 129 1226 . 720 397 2951 Parts 530 | 5 22 32 15 . . 97 41 17 1 3 2 52 1 . 11 2 67 . 40 19 103 Haulers Intercepted 9 | . 1 . 2 . . 3 . . . . . 1 . . . . . . 2 . . Recyclers Shooed 4 | 1 1 . . . . . 1 . . . . 1 . . . . . . . . . Parts Field Recycled 61 | . . . . . . 51 10 . . . . . . . . . . . . . . Retrieved Matter 785 | . . . . . . 705 80 . . . . . . . . . . . . . . Parts Self-Destructed 10 | . . . . . . . . 2 . 2 . . 4 . . 2 . . . . . Prevented 15 | . . . . . . . . 12 . . 2 . 1 . . . . . . . . Kills | -11 -10 -9 -9 -9 -9 -6 -5 -5 -5 -5 -4 -4 -4 -4 -4 -3 -3 -3 -2 -2 -2 ------- Run | Yrd Mat Mat Sto Rec Scr Fac Fac Upp Upp Zhi Pro Fac Upp Upp War Pro Res Qua Res Tes Frg Combat Hostiles Destroyed 201 | . 9 6 3 . . 18 19 10 . . 3 20 . . 18 5 10 . 6 5 69 Melee 22 | . . . . . . . . . . . . 1 . . . . 5 . 6 5 5 Guns 69 | . 9 6 3 . . 13 4 1 . . . 6 . . . . 1 . . . 26 Cannons 18 | . . . . . . . 5 . . . 1 5 . . . 1 3 . . . 3 AOE 81 | . . . . . . 3 4 9 . . . 7 . . 18 4 1 . . . 35 Classes Destroyed 25 | 2 3 2 1 . . 5 . 2 . . . . . . 3 1 . . . 1 5 Worker 20 | . 2 . . . . 10 1 . . . . 2 . . . . 4 . 1 . . Builder 18 | . . . . . . 6 2 . . . . 4 . . . . 3 . 2 . 1 Tunneler 8 | 2 . . . . . 2 2 . . . . 2 . . . . . . . . . Hauler 9 | . 1 . 2 . . 3 . . . . . 1 . . . . . . 2 . . Recycler 21 | 1 . 1 2 . . 5 3 . . . . 6 . . . . 3 . . . . Minesweeper 2 | . . . . . . . . 1 . . . . 1 . . . . . . . . Mechanic 4 | . . . . . . . . . . . . . . . 1 . . . . . 3 Operator 3 | . . . . . . 1 1 . . . . 1 . . . . . . . . . Drone 8 | . . . . . . . . . . . . . . . . 2 . . . . 6 Watcher 9 | . . 2 . . . 1 . . . . . 1 . . . . . . 1 1 3 Swarmer 24 | . . . 1 . . 1 3 9 . . . . . . . . . . . . 10 Saboteur 2 | . . . . . . . . . . . . . . . . . . . . . 2 Grunt 66 | . 9 2 1 . . 8 5 1 . . . 12 . . 15 2 2 . 2 . 7 Brawler 4 | . . . . . . . . . . . . . . . 1 . . . . . 3 Duelist 3 | . . . . . . 1 . . . . . . . . 1 . . . . . 1 Protector 1 | . . . . . . . . . . . . . . . . . . . . . 1 Sentry 14 | . . 4 1 . . 2 1 . . . 1 1 . . . 1 1 . . . 2 Hunter 19 | . . . . . . 2 3 . . . 2 2 . . . . . . . . 10 Programmer 36 | . . . . . . 4 7 . . . . 5 . . . . 7 . 4 4 5 Behemoth 1 | . . . . . . . . . . . . . . . . . . . . . 1 Decapitator 5 | . . . . . . . . . . . . . . . . . . . . . 5 Striker 9 | . . . . . . . . . . . . . . . 1 . . . . . 8 Executioner 8 | . . . . . . . . . . . . . . . . . . . . . 8 Protovariant D 1 | . . . . . . . . . . . . . . . . . . . . 1 . Decomposer 5 | . . . . . . . . 4 1 . . . . . . . . . . . . Packrat 1 | . . . . . . . . 1 . . . . . . . . . . . . . Samaritan 2 | . . . . . . . . 1 . . . . 1 . . . . . . . . Best Kill Streak 12 | 3 4 2 3 . . 12 5 5 . . 1 9 1 . 11 4 3 . 2 4 10 Combat Bots Only 10 | . 3 2 1 . . 7 3 5 . . 1 5 . . 10 4 2 . 2 3 10 Max Kills in Single Turn 6 | 1 1 1 1 . . 3 1 3 1 . 1 2 1 . 6 2 2 . 1 1 4 Gunslinging . | . . . . . . . . . . . . . . . . . . . . . . Exploded 5 | . . . . . . 2 1 3 . . . 1 . . 5 2 1 . . . 3 Melee 1 | . . . . . . . . . . . . 1 . . . . 1 . 1 1 1 Uniques/NPCs Destroyed . | . . . . . . . . . . . . . . . . . . . . . . Combat | -11 -10 -9 -9 -9 -9 -6 -5 -5 -5 -5 -4 -4 -4 -4 -4 -3 -3 -3 -2 -2 -2 -------- Run | Yrd Mat Mat Sto Rec Scr Fac Fac Upp Upp Zhi Pro Fac Upp Upp War Pro Res Qua Res Tes Frg Hostile Shots Fired 1772 | . 38 26 21 38 . 173 120 28 . . 46 367 . . 5 8 314 . 31 23 534 Missed 599 | . 10 5 8 6 . 56 29 10 . . 20 114 . . 2 6 137 . 5 10 181 Hits 1173 | . 28 21 13 32 . 117 91 18 . . 26 253 . . 3 2 177 . 26 13 353 Melee 24 | . . . . . . 1 . . . . . . . . . . . . . . 23 Projectile 1149 | . 28 21 13 32 . 116 91 18 . . 26 253 . . 3 2 177 . 26 13 330 AOE 2 | . . . . . . 1 . . . . . . . . . . . . . . 1 Critical Strikes 65 | . . 1 . 3 . 1 3 2 . . 1 16 . . 1 . 15 . 2 . 20 Part Disruptions 12 | . . . . 10 . . . . . . . . . . . . 1 . . . 1 Damage Taken 22790 | . 352 309 261 639 . 2016 1746 323 . . 412 5025 . . 65 49 3968 . 609 234 6782 Core 2209 | . 80 31 36 122 . 106 114 32 . . 51 392 . . . . 334 . 67 22 822 Absorbed by Shields 4188 | . . . . . . . 21 . . . . . . . . . . . . 23 4144 Regen/Repaired (Parts) 2024 | . . . . . . 1 12 . . . . 35 10 . 69 . 378 . 186 316 1017 Core Remaining (%) 69 | 100 68 . . . 52 87 . . . . 80 . . . . 65 . 67 . . 37 Volleys Fired 562 | 6 46 21 19 6 . 52 46 15 . . 3 79 2 . 6 12 31 2 17 6 193 Largest 4 | 2 2 3 3 3 . 3 3 3 . . 3 3 1 . 1 1 2 1 1 1 4 Hottest 295 | 60 100 110 100 69 . 180 181 101 . . 112 271 47 . 50 47 151 113 120 120 295 Shots Fired 1053 | 12 87 53 47 15 . 133 113 25 . . 8 123 3 1 7 12 36 2 17 6 353 Gun 730 | 12 82 48 42 15 . 130 47 13 . . 6 87 . 1 1 . 4 . . . 242 Cannon 233 | . . . . . . . 58 5 . . 2 27 3 . 1 9 28 2 17 6 75 Launcher 75 | . . . . . . 3 8 7 . . . 9 . . 5 3 4 . . . 36 Special 15 | . 5 5 5 . . . . . . . . . . . . . . . . . . Kinetic 666 | 6 41 26 36 15 . 119 99 18 . . 8 76 3 . . 9 16 . . . 194 Thermal 289 | 6 46 11 5 . . 11 6 . . . . 38 . 1 1 . 16 2 17 6 123 Explosive 49 | . . . . . . . . . . . . 9 . . . . 4 . . . 36 Electromagnetic 40 | . . 16 6 . . 3 8 7 . . . . . . . . . . . . . Entropic 9 | . . . . . . . . . . . . . . . 6 3 . . . . . Robot Hit Streak 32 | 9 12 10 16 11 . 10 12 4 . . 3 10 . . 1 5 7 . . . 32 Robot Miss Streak 8 | 2 3 1 1 1 . 5 5 6 . . 4 5 . . 3 1 2 . . . 8 Penetration Max 1 | . . . . . . . 1 . . . . 1 . . . . . . . . 1 Secondary Targets 10 | . 2 . . . . 2 . . . . . 2 . . . . . . . . 4 Max Gunslinging Chain 1 | . 1 . . . . 1 . . . . . 1 . . . . . . . . 1 Shots Hit Robots 845 | 9 64 31 28 14 . 110 85 20 1 4 10 111 6 . 1 8 61 1 36 15 230 Core Hits 544 | 4 25 15 10 1 . 55 33 27 1 3 7 94 1 . 27 6 28 . 12 6 189 Critical Kills 19 | . . . . . . 4 5 . . . 1 5 . . . . . . . . 4 Critical Parts Destroyed 41 | . . . . . . 4 9 1 . . 2 13 . . . . . . . . 12 Critical Strikes 107 | . . . . . . 8 18 1 . . 3 18 . . . 3 8 . 7 3 38 Burn 18 | . . . . . . . 1 . . . . . . . . . . . . . 17 Destroy 46 | . . . . . . . 12 . . . 1 13 . . . . . . . . 20 Blast 6 | . . . . . . . 2 . . . . . . . . 3 . . . . 1 Smash 19 | . . . . . . 8 3 1 . . 2 5 . . . . . . . . . Sever 18 | . . . . . . . . . . . . . . . . . 8 . 7 3 . Melee Attacks 482 | . . . . . . 60 36 8 2 4 4 64 15 1 . 1 113 12 91 42 29 Impact 157 | . . . . . . 60 36 5 . . 4 52 . . . . . . . . . Slashing 316 | . . . . . . . . . . . . 12 15 1 . 1 113 12 91 42 29 Piercing 9 | . . . . . . . . 3 2 4 . . . . . . . . . . . Sneak Attacks 81 | . . . . . . 23 8 6 1 . . 8 3 . . . 11 . 8 5 8 Combat Hostiles 2 | . . . . . . . . . . . . . . . . . . . . 2 . Follow-up Attacks 13 | . . . . . . . . . . . . . . . . . . . 10 3 . Damage Inflicted 50697 | 100 753 487 417 209 . 5236 3501 1376 84 250 278 5149 373 . 4339 1002 3753 41 2917 1513 18919 Guns 13055 | 100 753 487 417 204 . 1910 878 174 . . 85 1839 . . . . 96 . . . 6112 Cannons 2942 | . . . . . . . 826 85 . . 32 307 . . . 230 307 . . . 1155 Explosions 19802 | . . . . . . 845 674 451 . . . 1340 . . 4339 772 791 . . . 10590 Melee 14855 | . . . . . . 2481 1123 666 84 250 161 1663 373 . . . 2559 41 2917 1513 1024 Ramming 43 | . . . . 5 . . . . . . . . . . . . . . . . 38 Kinetic 11665 | 45 350 186 338 204 . 1625 1556 259 . . 117 1104 . . . 230 96 . . . 5555 Thermal 4406 | 55 403 51 . . . 543 293 . . . . 1042 . . . . 307 . . . 1712 Explosive 12576 | . . . . . . . . . . . . 1195 . . . . 791 . . . 10590 Electromagnetic 2041 | . . 250 79 . . 587 529 451 . . . 145 . . . . . . . . . Impact 5610 | . . . . . . 2481 1123 496 . . 161 1349 . . . . . . . . . Slashing 8741 | . . . . . . . . . . . . 314 373 . . . 2559 41 2917 1513 1024 Piercing 504 | . . . . . . . . 170 84 250 . . . . . . . . . . . Entropic 5111 | . . . . . . . . . . . . . . . 4339 772 . . . . . Highest Corruption 22 | . . . . 3 3 3 9 7 . . . 18 18 18 18 . 22 22 5 7 21 Average Corruption 9 | . . . . 2 3 2 6 3 . . . 14 18 18 18 . 12 22 4 5 11 Corruption Purged 13 | . . . . . . . 6 7 . . . . . . . . . . . . . Corruption Blocked . | . . . . . . . . . . . . . . . . . . . . . . Effects 355 | . . . . 2 . 23 30 3 . . . 53 31 9 3 . 31 11 18 17 124 Message Errors 92 | . . . . 1 . 3 8 1 . . . 12 9 5 . . 8 4 8 4 29 Matter Fused 61 | . . . . . . 6 4 1 . . . 10 4 . . . 4 2 3 2 25 Heat Flow Errors 44 | . . . . . . 4 7 . . . . 7 5 2 1 . 1 2 2 1 12 Energy Discharges 41 | . . . . . . 2 4 . . . . 2 6 1 1 . 5 1 1 5 13 Parts Rejected 5 | . . . . 1 . . 1 . . . . 1 . . . . 1 1 . . . Parts Fused 5 | . . . . . . 1 . . . . . 1 . . . . 1 . . . 2 Data Loss (minor) 42 | . . . . . . 1 3 1 . . . 8 5 . . . 4 . 4 5 11 Data Loss (major) 11 | . . . . . . 1 . . . . . 3 1 . . . 2 . . . 4 Misfires 10 | . . . . . . 2 . . . . . 4 1 1 1 . 1 . . . . Alerts 14 | . . . . . . 2 3 . . . . 1 . . . . 2 1 . . 5 Misdirections 12 | . . . . . . . . . . . . 2 . . . . 2 . . . 8 Weapon Failures 18 | . . . . . . 1 . . . . . 2 . . . . . . . . 15 Overload Shots . | . . . . . . . . . . . . . . . . . . . . . . Overflow Damage 5193 | . . . . . . 1018 522 559 . 39 116 631 156 . 66 58 362 6 484 413 763 Projectiles 45 | . . . . . . . 10 . . . . 1 . . . . . . . . 34 Explosions 617 | . . . . . . 40 37 3 . . . 29 . . 66 58 33 . . . 351 Melee 4531 | . . . . . . 978 475 556 . 39 116 601 156 . . . 329 6 484 413 378 Knockbacks 39 | . . . . . . 4 13 2 . . 2 14 . . . . . . . . 4 Impact 20 | . . . . . . 4 5 1 . . 2 8 . . . . . . . . . Kinetic 16 | . . . . . . . 7 1 . . . 4 . . . . . . . . 4 Secondary 3 | . . . . . . . 1 . . . . 2 . . . . . . . . . Self-Inflicted Damage 1247 | . . . . . . 119 114 40 . . . 202 . . . . . . . . 772 Shots 28 | . . . . . . 4 6 3 . . . 4 . . . . . . . . 11 Rammed 8 | . . . . 4 . . . . . . . . . . . . . . . . 4 Targets Rammed 8 | . . . . 4 . . . . . . . . . . . . . . . . 4 Kicked . | . . . . . . . . . . . . . . . . . . . . . . Crushed . | . . . . . . . . . . . . . . . . . . . . . . Highest Temperature 512 | . 84 180 207 18 . 512 402 63 . . 154 383 273 300 231 . 227 192 114 202 368 Average Temperature 82 | . 27 61 76 7 . 112 103 28 . . 82 144 29 46 85 . 42 101 29 56 101 Received Heat Transfer 2083 | . 195 135 51 39 . 474 144 45 . . 27 411 . . 21 . 376 . 27 . 138 Effects 9 | . . . . . . 5 . . . . . 4 . . . . . . . . . Shutdowns 2 | . . . . . . 1 . . . . . 1 . . . . . . . . . Interference 2 | . . . . . . . . . . . . 2 . . . . . . . . . Damage (minor) 1 | . . . . . . . . . . . . 1 . . . . . . . . . Damage (major) 4 | . . . . . . 4 . . . . . . . . . . . . . . . Siege Activations . | . . . . . . . . . . . . . . . . . . . . . . Martial Activations . | . . . . . . . . . . . . . . . . . . . . . . Shielding Activations 1 | . . . . . . . . . . . . . . . . . . . . . 1 Total Turns 2 | . . . . . . . . . . . . . . . . . . . . . 2 Longest Duration 2 | . . . . . . . . . . . . . . . . . . . . . 2 Robots Disrupted . | . . . . . . . . . . . . . . . . . . . . . . Combat Hostiles . | . . . . . . . . . . . . . . . . . . . . . . Robots Corrupted 27 | . . . . . . 9 7 2 . . 2 7 . . . . . . . . . Combat Hostiles 11 | . . . . . . 2 6 . . . 2 1 . . . . . . . . . Parts Fried 51 | . . 1 . . . 21 16 2 . . 2 9 . . . . . . . . . Impact Corruptions 85 | . . . . . . 29 14 21 . . 2 19 . . . . . . . . . Robots Melted . | . . . . . . . . . . . . . . . . . . . . . . Combat Hostiles . | . . . . . . . . . . . . . . . . . . . . . . Parts Melted 17 | . 1 . . . . 3 2 . . . . 5 . . . . 2 . 1 . 3 Heat Transferred 9088 | 125 875 125 . . . 725 450 . . . . 2225 . . . . 259 . . . 4304 Parts Sabotaged . | . . . . . . . . . . . . . . . . . . . . . . Parts Stolen . | . . . . . . . . . . . . . . . . . . . . . . Parts Stripped . | . . . . . . . . . . . . . . . . . . . . . . Power Chain Reactions 5 | . . . . . . 1 3 . . . . 1 . . . . . . . . . Alert | -11 -10 -9 -9 -9 -9 -6 -5 -5 -5 -5 -4 -4 -4 -4 -4 -3 -3 -3 -2 -2 -2 ------- Run | Yrd Mat Mat Sto Rec Scr Fac Fac Upp Upp Zhi Pro Fac Upp Upp War Pro Res Qua Res Tes Frg Maximum Alert Level 5 | . . . . . . 2 1 . . . . 3 . . . . 2 1 . . 5 Low Security (%) 72 | 100 100 100 100 100 . 86 93 . . . . 46 . . . . 25 . 100 100 59 Level 1 12 | . . . . . . 4 6 . . . . 11 . . . . 62 100 . . . Level 2 7 | . . . . . . 9 . . . . . 25 . . . . 11 . . . 7 Level 3 2 | . . . . . . . . . . . . 16 . . . . . . . . 4 Level 4 1 | . . . . . . . . . . . . . . . . . . . . . 8 Level 5 3 | . . . . . . . . . . . . . . . . . . . . . 19 High Security . | . . . . . . . . . . . . . . . . . . . . . . Max Security . | . . . . . . . . . . . . . . . . . . . . . . Peak Influence 2122 | 10 70 56 30 5 . 503 245 . . . . 806 . . . . 554 311 146 88 2122 Initial 450 | . . 18 11 . . . 245 . . . . . . . . . 450 306 146 46 25 Average 238 | 1 17 10 4 . . 97 141 . . . . 345 . . . . 268 281 76 54 660 Influence Increases 9509 | 15 283 207 116 5 . 1092 664 225 . 10 70 1494 5 . 365 70 1284 85 365 342 2812 Destroy 0b10 Robot/C 4140 | . 180 120 60 . . 520 380 200 . . 60 520 . . 360 60 200 . 120 120 1240 Destroy 0b10 Robot/NC 530 | 15 15 15 20 . . 145 45 5 . 10 . 85 5 . 5 10 50 . 30 5 70 Destroy Leader 766 | . 52 54 14 . . 138 80 20 . . 10 94 . . . . 50 . 26 22 206 Allied During Kill 153 | . . . . . . 78 . . . . . 68 . . . . . . . 7 . Trap Triggered on 0b10 20 | . . . . . . . . . . . . 10 . . . . 10 . . . . Successful Hack 201 | . 17 13 5 5 . 24 24 . . . . 26 . . . . 10 . 24 29 24 Disable Machine 705 | . . . 15 . . 60 60 . . . . 150 . . . . 15 75 . 105 225 Destroy Structure 1614 | . 4 5 2 . . 52 60 . . . . 316 . . . . 184 10 165 39 777 Advance Influence 450 | . . . . . . . . . . . . . . . . . 450 . . . . Partial Spotted 105 | . . . . . . . 15 . . . . 30 . . . . 15 . . . 45 Lose Combat Pursuer 825 | . 15 . . . . 75 . . . . . 195 . . . . 300 . . 15 225 Influence Decreases 7392 | 15 237 224 145 5 . 590 1022 322 47 10 70 722 628 119 46 419 738 370 543 379 741 Entered New Map 1474 | . . 28 18 . . . 257 54 10 . . . 286 29 30 349 . 240 115 37 21 Time Decay 4983 | 15 237 196 127 5 . 459 515 258 37 10 70 468 342 90 16 70 598 120 428 302 620 Lost Part 505 | . . . . . . 51 100 10 . . . 164 . . . . 80 . . . 100 Lost Ally 280 | . . . . . . 80 . . . . . 90 . . . . 60 10 . 40 . Purge Threat 150 | . . . . . . . 150 . . . . . . . . . . . . . . Squads Dispatched 71 | . 3 . 1 . . 11 8 . . . . 13 . . . . 10 . 8 7 10 Investigation 24 | . 2 . . . . 3 2 . . . . 4 . . . . 4 . 1 2 6 Extermination 22 | . . . . . . 4 3 . . . . 3 . . . . 4 . 4 2 2 Reinforcement 20 | . 1 . 1 . . 2 2 . . . . 5 . . . . 2 . 3 2 2 Assault 2 | . . . . . . 1 . . . . . 1 . . . . . . . . . Garrison 3 | . . . . . . 1 1 . . . . . . . . . . . . 1 . Intercept . | . . . . . . . . . . . . . . . . . . . . . . Searches Triggered . | . . . . . . . . . . . . . . . . . . . . . . Construction Impeded 6 | . . . . . . 1 1 . . . . 4 . . . . . . . . . Haulers Reinforced 4 | . . . . . . . 1 . . . . 1 . . . . . . 2 . . Active Scanning Responses . | . . . . . . . . . . . . . . . . . . . . . . Cargo Convoy Interrupts 1 | . . . . . . . 1 . . . . . . . . . . . . . . Stealth | -11 -10 -9 -9 -9 -9 -6 -5 -5 -5 -5 -4 -4 -4 -4 -4 -3 -3 -3 -2 -2 -2 --------- Run | Yrd Mat Mat Sto Rec Scr Fac Fac Upp Upp Zhi Pro Fac Upp Upp War Pro Res Qua Res Tes Frg Distress Signals 23 | . 1 . 2 . . . 1 . . . . 4 . . . . 4 . 1 . 10 Communications Jammed 67 | . . . . . . . . . . . . 1 . . . . 7 . . . 59 Distress Signals 67 | . . . . . . . . . . . . 1 . . . . 7 . . . 59 Times Spotted 450 | . 13 8 8 3 . 34 24 10 . . 3 47 . . 18 3 44 1 8 7 219 Peak Tracking Total 19 | . 3 2 2 1 . 8 5 5 . . 2 6 . . 7 2 14 1 3 1 19 Tactical Retreats 31 | . 1 . . . . 4 . . . . . 7 . . . . 8 . . 1 10 Traps | -11 -10 -9 -9 -9 -9 -6 -5 -5 -5 -5 -4 -4 -4 -4 -4 -3 -3 -3 -2 -2 -2 ------- Run | Yrd Mat Mat Sto Rec Scr Fac Fac Upp Upp Zhi Pro Fac Upp Upp War Pro Res Qua Res Tes Frg Traps Triggered 12 | . 1 . 1 . . 3 3 . . . . . . . . . . . . . 4 Indirectly . | . . . . . . . . . . . . . . . . . . . . . . Trap Hack Attempts . | . . . . . . . . . . . . . . . . . . . . . . Triggered . | . . . . . . . . . . . . . . . . . . . . . . Disarmed . | . . . . . . . . . . . . . . . . . . . . . . Reprogrammed . | . . . . . . . . . . . . . . . . . . . . . . Reused 2 | . . . . . . . . . . . . 1 . . . . 1 . . . . Traps Extracted 1 | . . . . . . . . . . . . . 1 . . . . . . . . Installed 12 | . . . . . . . . 2 . . . 1 5 . 1 . 3 . . . . Triggered 2 | . . . . . . . . . . . . 1 . . . . 1 . . . . Most Traps Carried 4 | . . . . . 1 1 1 2 2 2 1 1 4 4 4 3 3 . . . . Machines | -11 -10 -9 -9 -9 -9 -6 -5 -5 -5 -5 -4 -4 -4 -4 -4 -3 -3 -3 -2 -2 -2 ---------- Run | Yrd Mat Mat Sto Rec Scr Fac Fac Upp Upp Zhi Pro Fac Upp Upp War Pro Res Qua Res Tes Frg Machines Disabled 52 | . 1 . 1 . . 4 4 . . . . 10 1 . 1 . 1 6 . 8 15 Max in Single Turn 2 | . 1 . 1 . . 1 1 . . . . 2 1 . 1 . 1 1 . 1 2 Garrison Access 1 | . . . . . . . . . . . . 1 . . . . . . . . . Machines Repaired . | . . . . . . . . . . . . . . . . . . . . . . Machines Dismantled . | . . . . . . . . . . . . . . . . . . . . . . Machines Sabotaged . | . . . . . . . . . . . . . . . . . . . . . . Overloaded Fab Kills . | . . . . . . . . . . . . . . . . . . . . . . Hacking | -11 -10 -9 -9 -9 -9 -6 -5 -5 -5 -5 -4 -4 -4 -4 -4 -3 -3 -3 -2 -2 -2 --------- Run | Yrd Mat Mat Sto Rec Scr Fac Fac Upp Upp Zhi Pro Fac Upp Upp War Pro Res Qua Res Tes Frg Machines Accessed 85 | . 4 2 2 2 4 9 6 . 3 5 . 9 2 1 4 . 10 3 5 4 10 Terminals 37 | . 3 1 1 2 . 4 4 . 1 . . 4 . . . . 6 1 4 2 4 Fabricators 4 | . . . . . . 1 . . . . . . . . . . . . . . 3 Repair Stations 2 | . . . . . . . . . . . . . . . . . 1 . . 1 . Recycling Units 19 | . 1 1 1 . . 3 2 . . . . 4 . . . . 3 . 1 . 3 Scanalyzers 2 | . . . . . . . . . . . . . . . . . . 2 . . . Garrison Access 3 | . . . . . . 1 . . . . . 1 . . . . . . . 1 . Total Hacks 175 | . 9 3 3 3 17 16 10 . 7 18 . 18 2 1 13 . 15 6 11 7 16 Successful 113 | . 6 3 3 1 17 5 5 . 7 18 . 7 2 1 13 . 7 3 6 3 6 Failed 62 | . 3 . . 2 . 11 5 . . . . 11 . . . . 8 3 5 4 10 Catastrophic 16 | . . . . . . 2 3 . . . . 2 . . . . 4 . 1 . 4 Database Lockouts . | . . . . . . . . . . . . . . . . . . . . . . Manual 69 | . 6 2 . 1 . 11 7 . . . . 14 . . . . 11 1 5 2 9 Terminals 73 | . 8 2 2 3 . 8 8 . 1 . . 9 . . . . 9 3 10 5 5 Fabricators 7 | . . . . . . 1 . . . . . . . . . . . . . . 6 Repair Stations 4 | . . . . . . . . . . . . . . . . . 3 . . 1 . Recycling Units 27 | . 1 1 1 . . 6 2 . . . . 7 . . . . 3 . 1 . 5 Scanalyzers 3 | . . . . . . . . . . . . . . . . . . 3 . . . Garrison Access 4 | . . . . . . 1 . . . . . 2 . . . . . . . 1 . Terminal Hacks 77 | . 5 1 2 1 17 1 2 . 7 18 . 1 2 1 13 . 1 . 4 1 . Record 35 | . 1 . . . 16 . . . 6 6 . . 1 . 5 . . . . . . Part Schematic 5 | . 1 . . . . . . . . 4 . . . . . . . . . . . Robot Analysis 5 | . 1 . . . . . . . . 4 . . . . . . . . . . . Prototype ID Bank 14 | . 1 . 1 . . . . . . 4 . . . . 7 . . . 1 . . Open Door 5 | . . . . . . . . . 1 . . . 1 1 1 . 1 . . . . Branch Access Points 4 | . . 1 . . . . 1 . . . . 1 . . . . . . 1 . . Machine Index 1 | . . . . . . . . . . . . . . . . . . . 1 . . Recycling Unit Index 1 | . . . . . . 1 . . . . . . . . . . . . . . . Unreport Threat 1 | . . . . . . . 1 . . . . . . . . . . . . . . Hauler Manifests 1 | . 1 . . . . . . . . . . . . . . . . . . . . Registered Components 2 | . . . 1 . . . . . . . . . . . . . . . 1 . . Registered Prototypes 1 | . . . . . . . . . . . . . . . . . . . . 1 . Zone Layout 1 | . . . . 1 . . . . . . . . . . . . . . . . . Proto ID Catalog 1 | . . . . . 1 . . . . . . . . . . . . . . . . Fabricator Hacks 2 | . . . . . . . . . . . . . . . . . . . . . 2 Load Schematic 1 | . . . . . . . . . . . . . . . . . . . . . 1 Build 1 | . . . . . . . . . . . . . . . . . . . . . 1 Repair Station Hacks 2 | . . . . . . . . . . . . . . . . . 2 . . . . Scan Component 1 | . . . . . . . . . . . . . . . . . 1 . . . . Repair 1 | . . . . . . . . . . . . . . . . . 1 . . . . Recycling Unit Hacks 3 | . 1 1 1 . . . . . . . . . . . . . . . . . . Retrieve Components 3 | . 1 1 1 . . . . . . . . . . . . . . . . . . Scanalyzer 2 | . . . . . . . . . . . . . . . . . . 2 . . . Insert Component 2 | . . . . . . . . . . . . . . . . . . 2 . . . Garrison Access Hacks 1 | . . . . . . . . . . . . 1 . . . . . . . . . Seal Access 1 | . . . . . . . . . . . . 1 . . . . . . . . . Unauthorized Hacks 26 | . . 1 . . . 4 3 . . . . 5 . . . . 4 1 2 2 4 Terminals 10 | . . 1 . . . 2 1 . . . . 2 . . . . 1 1 1 . 1 Assimilate 1 | . . . . . . . . . . . . . . . . . 1 . . . . Botnet 9 | . . 1 . . . 2 1 . . . . 2 . . . . . 1 1 . 1 Fabricators . | . . . . . . . . . . . . . . . . . . . . . . Repair Stations 1 | . . . . . . . . . . . . . . . . . . . . 1 . Patch 1 | . . . . . . . . . . . . . . . . . . . . 1 . Recycling Units 14 | . . . . . . 2 2 . . . . 3 . . . . 3 . 1 . 3 Fedlink 12 | . . . . . . 2 2 . . . . 2 . . . . 3 . 1 . 2 Scrapoids 1 | . . . . . . . . . . . . 1 . . . . . . . . . Scraphulk 1 | . . . . . . . . . . . . . . . . . . . . . 1 Scanalyzers . | . . . . . . . . . . . . . . . . . . . . . . Garrison Access 1 | . . . . . . . . . . . . . . . . . . . . 1 . Reprogram 1 | . . . . . . . . . . . . . . . . . . . . 1 . Data Cores Recovered . | . . . . . . . . . . . . . . . . . . . . . . Used . | . . . . . . . . . . . . . . . . . . . . . . Hacking Detections 50 | . 3 1 1 2 . 8 4 . . . . 6 . . . . 6 3 4 3 9 Full Trace Events 4 | . 1 . . . . 1 . . . . . 1 . . . . . . . . 1 Feedback Events . | . . . . . . . . . . . . . . . . . . . . . . Feedback Blocked . | . . . . . . . . . . . . . . . . . . . . . . Robot Schematics Acquired . | . . . . . . . . . . . . . . . . . . . . . . Robots Built . | . . . . . . . . . . . . . . . . . . . . . . Authchips . | . . . . . . . . . . . . . . . . . . . . . . Time . | . . . . . . . . . . . . . . . . . . . . . . Total Robot Build Rating . | . . . . . . . . . . . . . . . . . . . . . . Part Schematics Acquired 5 | . 1 . . . . . . . . 4 . . . . . . . . . . . Parts Built 1 | . . . . . . . . . . . . . . . . . . . . . 1 Authchips . | . . . . . . . . . . . . . . . . . . . . . . Time 17 | . . . . . . . . . . . . . . . . . . . . . 17 Total Part Build Rating 1 | . . . . . . . . . . . . . . . . . . . . . 1 Parts Repaired 1 | . . . . . . . . . . . . . . . . . 1 . . . . Time 56 | . . . . . . . . . . . . . . . . . 56 . . . . Parts Recycled . | . . . . . . . . . . . . . . . . . . . . . . Recycled Matter . | . . . . . . . . . . . . . . . . . . . . . . Retrieved Matter . | . . . . . . . . . . . . . . . . . . . . . . Retrieved Components 3 | . 1 1 1 . . . . . . . . . . . . . . . . . . Parts Scanalyzed . | . . . . . . . . . . . . . . . . . . . . . . Part Schematics Acquired . | . . . . . . . . . . . . . . . . . . . . . . Parts Damaged . | . . . . . . . . . . . . . . . . . . . . . . Bothacking | -11 -10 -9 -9 -9 -9 -6 -5 -5 -5 -5 -4 -4 -4 -4 -4 -3 -3 -3 -2 -2 -2 ------------ Run | Yrd Mat Mat Sto Rec Scr Fac Fac Upp Upp Zhi Pro Fac Upp Upp War Pro Res Qua Res Tes Frg Used RIF Installer . | . . . . . . . . . . . . . . . . . . . . . . Robots Hacked . | . . . . . . . . . . . . . . . . . . . . . . Non-combat . | . . . . . . . . . . . . . . . . . . . . . . Combat . | . . . . . . . . . . . . . . . . . . . . . . Robot Hacks Applied . | . . . . . . . . . . . . . . . . . . . . . . Relay Couplers Released 7 | . . . . . . 3 . . . . . . . . . . 4 . . . . Programmers 7 | . . . . . . 3 . . . . . . . . . . 4 . . . . Fabnet Peak Effective % . | . . . . . . . . . . . . . . . . . . . . . . Robots Rewired . | . . . . . . . . . . . . . . . . . . . . . . Allies Hacked 3 | . . . . . . 3 . . . . . . . . . . . . . . . Hacks Repelled . | . . . . . . . . . . . . . . . . . . . . . . Allies | -11 -10 -9 -9 -9 -9 -6 -5 -5 -5 -5 -4 -4 -4 -4 -4 -3 -3 -3 -2 -2 -2 -------- Run | Yrd Mat Mat Sto Rec Scr Fac Fac Upp Upp Zhi Pro Fac Upp Upp War Pro Res Qua Res Tes Frg Total Allies 14 | . . . . . . 5 . . . . . 5 . . . . 1 . . 2 1 Largest Group 5 | . . . . . . 5 . . . . . 5 . . . . 1 . . 2 1 Highest-Rated Group 235 | . . . . . . 235 . . . . . 235 . . . . 10 . . 138 139 Highest-Rated Ally 139 | . . . . . . 47 . . . . . 47 . . . . 10 . . 69 139 Total Orders 214 | . . . . . . 10 7 . . . 9 13 . . . . 91 12 49 22 1 STAY 40 | . . . . . . 2 . . . . 2 1 . . . . 17 2 11 4 1 ROAM 1 | . . . . . . . . . . . . . . . . . . . 1 . . FOLLOW 36 | . . . . . . 2 2 . . . 2 1 . . . . 12 1 12 4 . EXPLORE 84 | . . . . . . 4 3 . . . 3 6 . . . . 38 6 16 8 . RETURN 53 | . . . . . . 2 2 . . . 2 5 . . . . 24 3 9 6 . Ally Attacks 130 | . . . . . . 78 . . . . . 45 . . . . . . . 7 . Total Damage 2846 | . . . . . . 1355 . . . . . 1205 . . . . . . . 286 . Kills 16 | . . . . . . 9 . . . . . 6 . . . . . . . 1 . Allies Corrupted 2 | . . . . . . . . . . . . . . . . . . . . 2 . Allies Melted . | . . . . . . . . . . . . . . . . . . . . . . Intel | -11 -10 -9 -9 -9 -9 -6 -5 -5 -5 -5 -4 -4 -4 -4 -4 -3 -3 -3 -2 -2 -2 ------- Run | Yrd Mat Mat Sto Rec Scr Fac Fac Upp Upp Zhi Pro Fac Upp Upp War Pro Res Qua Res Tes Frg Active Infowar (turns) 18308 | 63 883 1000 477 166 . 2006 1264 898 503 254 516 1614 775 183 750 284 1904 240 1051 674 2803 Optics 9869 | . . . . . . . . . . . . 1205 775 183 750 284 1904 240 1051 674 2803 Sensors 9035 | . . . . . . . . 762 503 254 516 878 775 183 750 284 709 240 811 492 1878 Terrain 1561 | . . . . . . . 154 . . . . . 40 . . 18 532 . 414 252 151 Seismic 11177 | 63 883 1000 477 166 . 1509 952 494 . . . 236 775 183 732 205 1740 240 539 478 505 Machine Analysis 2392 | . . . . . . 1272 1096 . . . . . . . . . . . . . 24 Jamming 3921 | . . . . . . . . 42 503 224 230 408 . . . . 110 240 336 352 1476 Robot Analysis Total 5 | . 1 . . . . . . . . 4 . . . . . . . . . . . Derelict Logs Recovered 6 | . . . . . . . . 1 3 . 1 . 1 . . . . . . . . Drone Launches 53 | . . . . . . 2 1 . . . 2 6 . . . . 27 4 7 4 . Drone Recoveries 45 | . . . . . . 2 1 . . . 2 5 . . . . 22 3 7 3 . Exploration | -11 -10 -9 -9 -9 -9 -6 -5 -5 -5 -5 -4 -4 -4 -4 -4 -3 -3 -3 -2 -2 -2 ------------- Run | Yrd Mat Mat Sto Rec Scr Fac Fac Upp Upp Zhi Pro Fac Upp Upp War Pro Res Qua Res Tes Frg Turns Passed 21324 | 150 943 1068 565 301 1842 2214 1438 947 503 254 653 1783 775 183 750 284 1904 240 1051 674 2802 Spaces Moved 15912 | 75 375 524 254 145 1139 1485 816 692 434 177 477 1054 900 233 763 366 1616 306 1039 712 2330 Core 3 | 3 . . . . . . . . . . . . . . . . . . . . . Treads 2678 | 72 375 524 254 145 1139 . 153 . . . . 16 . . . . . . . . . Legs 112 | . . . . . . . . . . 32 . 80 . . . . . . . . . Wheels 5334 | . . . . . . 1485 663 692 434 145 477 518 . . . . . . . . 920 Hover 7785 | . . . . . . . . . . . . 440 900 233 763 366 1616 306 1039 712 1410 Flight . | . . . . . . . . . . . . . . . . . . . . . . Fastest Speed 44 | 50 160 160 160 160 160 100 110 110 110 100 110 62 65 65 56 56 44 58 52 52 48 Average Speed 91 | 155 160 160 164 164 160 105 120 110 110 124 111 91 65 65 61 56 60 59 54 52 66 Slowest Speed 240 | 160 160 160 240 240 160 110 186 120 110 190 120 240 65 65 65 56 135 62 119 52 114 Overloaded Moves 131 | . . . . . . . . . . . . . . . . . 131 . . . . Propulsion Burnouts . | . . . . . . . . . . . . . . . . . . . . . . Robots Hopped 2 | . . . . . . 2 . . . . . . . . . . . . . . . Potential Cave-ins 10 | . . . . . . . . . . . . . . . . . 2 . 2 . 6 Cave-ins Triggered . | . . . . . . . . . . . . . . . . . . . . . . Teleports 1 | . . . . . . . . . . . . . . . . . 1 . . . . Exploration Rate (%) 50 | 5 57 35 38 21 85 30 20 58 56 60 73 35 70 46 88 50 61 49 33 76 58 Regions Visited 21 Branch Regions 14 Pre-discovered Areas 8 | . . . . . . 1 . . 2 3 1 . 1 . . . . . . . . Known Exits Taken 11 | . . 1 . . . 1 1 . 1 1 1 1 . . . 1 1 . 1 1 . Unknown Exits Taken 10 | 1 1 . 1 1 1 . . 1 . . . . 1 1 1 . . 1 . . . Scrap Searched 10 | . . . . . 1 . . 2 1 . . . 3 1 . 2 . . . . . Spaces Dug 368 | . 4 5 2 . . 21 20 . . . . 65 9 1 . 28 71 5 58 14 65 Terrain Destroyed 1043 | . 4 5 2 . . 35 30 . . . . 158 9 1 132 57 114 5 58 14 419 Melee 190 | . . . . . . 21 19 . . . . 26 6 1 . 1 46 4 41 10 15 Projectile 163 | . 4 5 2 . . 5 11 . . . . 19 3 . . . 19 1 17 4 73 AOE 683 | . . . . . . 8 . . . . . 107 . . 132 56 49 . . . 331 Terrain Rammed . | . . . . . . . . . . . . . . . . . . . . . . Walls Destroyed . | . . . . . . . . . . . . . . . . . . . . . . Machines Disabled . | . . . . . . . . . . . . . . . . . . . . . . Actions | -11 -10 -9 -9 -9 -9 -6 -5 -5 -5 -5 -4 -4 -4 -4 -4 -3 -3 -3 -2 -2 -2 --------- Run | Yrd Mat Mat Sto Rec Scr Fac Fac Upp Upp Zhi Pro Fac Upp Upp War Pro Res Qua Res Tes Frg Total 21044 | 92 621 709 355 186 1166 1931 1120 840 457 204 585 1641 1065 262 1040 430 2334 348 1383 962 3313 Wait 2796 | . 174 105 45 14 . 198 117 91 16 . 80 285 123 28 222 36 475 10 201 148 428 Move 15888 | 74 374 523 253 144 1138 1481 815 691 433 176 476 1053 899 232 762 365 1615 305 1038 711 2330 Hop 1 | . . . . . . 1 . . . . . . . . . . . . . . . Pick Up 217 | 4 10 15 9 . 12 19 22 11 2 4 6 28 5 . 6 2 14 6 9 10 23 Fast Attach 174 | 7 2 5 6 5 . 24 6 . 1 8 1 44 2 . 13 3 12 2 1 7 25 Attach 148 | . 1 1 . 2 . 13 20 5 1 . 6 14 3 . 4 3 17 2 9 13 34 Detach 119 | . 1 1 3 4 . 11 6 1 . . . 15 4 . 5 1 8 2 2 8 47 Swap 274 | 1 7 17 9 4 1 39 32 8 . 2 3 19 4 1 4 3 27 2 23 8 60 Drop 276 | . 6 21 11 3 15 24 14 8 2 10 6 39 3 . 17 4 19 7 12 18 37 Fire 562 | 6 46 21 19 6 . 52 46 15 . . 3 79 2 . 6 12 31 2 17 6 193 Melee 450 | . . . . . . 60 36 8 2 4 4 64 15 1 . 1 113 10 71 33 28 Ram 4 | . . . . . . . . . . . . . . . . . . . . . 4 Kick . | . . . . . . . . . . . . . . . . . . . . . . Crush 4 | . . . . 4 . . . . . . . . . . . . . . . . . Escape Stasis 38 | . . . . . . 8 6 . . . . . . . . . . . . . 24 Rewire 1 | . . . . . . 1 . . . . . . . . . . . . . . . Trap 12 | . . . . . . . . 2 . . . 1 5 . 1 . 3 . . . . Miscellaneous 80 | . . . . . . . . . . . . . . . . . . . . . 80 Route ------- -11/Scrapyard -10/Materials (discovered 3 exits: *Mat x2 / [*Min]) -9/Materials (discovered 5 exits: [*Mat] / *Min x2 / *Sto x2) -9/Storage -9/Recycling -9/Scraptown (discovered 2 exits: *Fac x2) -6/Factory (discovered 2 exits: *Fac / [*Ext]) -5/Factory (discovered 2 exits: *Upp x2) -5/Upper Caves -5/Upper Caves -5/Zhirov -4/Proximity Caves -4/Factory (discovered 3 exits: Res / *Upp x2) -4/Upper Caves -4/Upper Caves -4/Warlord -3/Proximity Caves -3/Research (discovered 3 exits: *Res / [*Arm] / *Qua) -3/Quarantine -2/Research (discovered 4 exits: *Acc x2 / *Tes x2) -2/Testing (discovered 2 exits: [*Sec] / *Frg) -2/Protoforge 0bPrime History --------- Turn | Location | Event 8 | -11/Scrapyard | Discovered new exit (range 15) 151 | -11/Scrapyard | Entered Materials 315 | -10/Materials | Build established: Mutant 469 | -10/Materials | Discovered new exit (range 13) 620 | -10/Materials | Discovered new exit (range 14) 722 | -10/Materials | Discovered new exit (range 7) 1094 | -10/Materials | Entered another Materials area 1094 | -9/Materials | Evolved 2 slots: Propulsion x1, Weapon x1 1193 | -9/Materials | Discovered new exit (range 6) 1224 | -9/Materials | Discovered new exit (range 9) 1405 | -9/Materials | Build established: Gunner 1622 | -9/Materials | Discovered new exit (range 15) 1706 | -9/Materials | Identified exit to Mines 1706 | -9/Materials | Identified exit to Storage 2162 | -9/Materials | Entered Storage 2439 | -9/Storage | Met 01-MTF 2670 | -9/Storage | Discovered new exit (range 5) 2727 | -9/Storage | Entered Recycling 2727 | -9/Recycling | Accompanied by 1 ally (01-MTF) 2897 | -9/Recycling | Scanned before Scraplab entrance 2972 | -9/Recycling | Found Prototype Energy Gun 2972 | -9/Recycling | Identified KN-7UR's Autopenetrator 3014 | -9/Recycling | Entered Scraplab 3026 | -9/Recycling | Discovered new exit (range 2) 3028 | -9/Recycling | Entered Scraptown 3032 | -9/Scraptown | System corruption cleaned by C-Scrubber 3198 | -9/Scraptown | Build established: Tank 3400 | -9/Scraptown | Discovered new exit (range 11) 3504 | -9/Scraptown | Visited Observation Area 3540 | -9/Scraptown | Visited Symbiants 3593 | -9/Scraptown | Visited Cyclists 3617 | -9/Scraptown | Visited Awakened 3676 | -9/Scraptown | Visited Fellowship of the Rings 3748 | -9/Scraptown | Visited Cave Peace 3808 | -9/Scraptown | Visited IN-MT5's Study 3859 | -9/Scraptown | Visited UFD Registry 3859 | -9/Scraptown | Registered with UFD as "Shockmech" 3907 | -9/Scraptown | Visited Science Testing Area 3929 | -9/Scraptown | Visited Junk Repository 3995 | -9/Scraptown | Visited Abandonware Association 4012 | -9/Scraptown | Learned abandonware demo "ERRANTS.EXE" 4012 | -9/Scraptown | Learned abandonware demo "POISON.EXE" 4196 | -9/Scraptown | Visited Curators Association 4231 | -9/Scraptown | Visited Scrap Suit Storage 4265 | -9/Scraptown | Visited A0-MCA Data Center 4308 | -9/Scraptown | Given an A+ rating by A0-MCA 4313 | -9/Scraptown | Found A0-MCA's Component Scanner 4338 | -9/Scraptown | Visited Modified Component R&D 4380 | -9/Scraptown | Visited Scrapoid Pod Storage 4415 | -9/Scraptown | Visited Science Guys 4482 | -9/Scraptown | Visited Sword Containment 4543 | -9/Scraptown | Found Scrapoid Pod 4595 | -9/Scraptown | Found Scrap Suit 4784 | -9/Scraptown | Met Optimus 4784 | -9/Scraptown | Accepted into 0bPrime 4862 | -9/Scraptown | Discovered new exit (range 5) 4870 | -9/Scraptown | Entered Factory 4870 | -6/Factory | Evolved 6 slots: Power x1, Propulsion x1, Utility x4 4961 | -6/Factory | Garrison activated, responded to threat 5090 | -6/Factory | Discovered new exit (range 7) 5507 | -6/Factory | Build established: Scrapper 5695 | -6/Factory | Discovered new exit (range 9) 6255 | -6/Factory | Build established: Mutant 6358 | -6/Factory | Scrapoid Pod released 06F05-D (x5) 6722 | -6/Factory | Loaded intel: 8 recycling unit locations 6758 | -6/Factory | Learned location of Protoforge (-2) 6808 | -6/Factory | P-60 Hacker assimilated allied 06F01-D 6824 | -6/Factory | Found Scrap Suit 6869 | -6/Factory | Lost 3 allies 6904 | -6/Factory | Destroyed 7 combat bots 6905 | -6/Factory | Lost 4 parts (1p1u2w) 6915 | -6/Factory | Found Corrupted Scrap Suit 6970 | -6/Factory | First assault squad dispatched 7084 | -6/Factory | Identified exit to Factory 7084 | -6/Factory | Entered another Factory area 7084 | -5/Factory | Evolved 2 slots: Propulsion x2 7173 | -5/Factory | Build established: Scavenger-Scrapper 7397 | -5/Factory | Identified exit to Upper Caves 7601 | -5/Factory | Loaded intel: 8 recycling unit locations 7706 | -5/Factory | Lost 3 parts (1n2u) 7980 | -5/Factory | Build established: Scrapper 8141 | -5/Factory | Cargo convoy interrupted 8454 | -5/Factory | Garrison activated, responded to threat 8484 | -5/Factory | Lost 4 parts (2n1u1w) 8522 | -5/Factory | Entered Upper Caves 8753 | -5/Upper Caves | Build established: Mutant 8876 | -5/Upper Caves | Learned Factory trap positions 9460 | -5/Upper Caves | Discovered new exit (range 8) 9469 | -5/Upper Caves | Entered another Upper Caves area 9579 | -5/Upper Caves | Entered an active Warlord outpost 9600 | -5/Upper Caves | Learned location of Armory (-3) 9600 | -5/Upper Caves | Learned 8 Factory zone layouts 9600 | -5/Upper Caves | Learned location of 1 exit from Research 9600 | -5/Upper Caves | Learned Research stockpile data 9600 | -5/Upper Caves | Learned Factory garrison access intel 9723 | -5/Upper Caves | Learned Factory emergency access door positions 9777 | -5/Upper Caves | Learned location of 1 exit from Factory 9777 | -5/Upper Caves | Discovered new exit (range 8) 9971 | -5/Upper Caves | Identified exit to Zhirov 9972 | -5/Upper Caves | Entered Zhirov 9972 | -5/Zhirov | Discovered new exit (range 3) 9992 | -5/Zhirov | Met Zhirov 10014 | -5/Zhirov | Learned location of Quarantine (-3) 10014 | -5/Zhirov | Learned location of Testing (-2) 10014 | -5/Zhirov | Learned location of Command (-1) 10025 | -5/Zhirov | Zhirov requested help retrieving the SGEMP Prototype 10156 | -5/Zhirov | Found Alien Artifact 10156 | -5/Zhirov | Identified Integrated Reactor 10156 | -5/Zhirov | Installed Integrated Reactor, increased core energy generation (+10) 10183 | -5/Zhirov | Found Alien Artifact 10224 | -5/Zhirov | Identified exit to Proximity Caves 10226 | -5/Zhirov | Entered Proximity Caves 10713 | -4/Proximity Caves | Attracted the attention of an 0b10 checkpoint 10808 | -4/Proximity Caves | Discovered new exit (range 9) 10878 | -4/Proximity Caves | Identified exit to Factory 10879 | -4/Proximity Caves | Entered Factory 10879 | -4/Factory | Evolved 2 slots: Propulsion x1, Utility x1 10880 | -4/Factory | Identified exit to Research 10882 | -4/Factory | Loaded intel: 83 trap records 10884 | -4/Factory | Loaded intel: 4 garrison access locations 11017 | -4/Factory | Found Prototype Processor 11017 | -4/Factory | Identified Exp. Targeting Computer 11136 | -4/Factory | Loaded intel: 8 recycling unit locations 11483 | -4/Factory | System corruption reached 10% 11757 | -4/Factory | Build established: Scavenger-Assassin 11909 | -4/Factory | Scrapoids reinforcements arrived? 11958 | -4/Factory | Lost 5 allies 11965 | -4/Factory | Found Scrap Suit 11989 | -4/Factory | Found Scrap Suit 12257 | -4/Factory | Spotted B-86 Titan 12324 | -4/Factory | Identified exit to Upper Caves 12596 | -4/Factory | Build established: Scavenger-Mutant 12629 | -4/Factory | First assault squad dispatched 12662 | -4/Factory | Entered Upper Caves 12686 | -4/Upper Caves | Lost 3 parts (1p2w) 13050 | -4/Upper Caves | Encountered a Warlord checkpoint 13327 | -4/Upper Caves | Found Alien Artifact 13431 | -4/Upper Caves | Discovered new exit (range 7) 13437 | -4/Upper Caves | Entered another Upper Caves area 13599 | -4/Upper Caves | Discovered new exit (range 17) 13620 | -4/Upper Caves | Entered Warlord 13637 | -4/Warlord | Discovered new exit (range 14) 13660 | -4/Warlord | System corruption cleaned by Quarantine Array 13905 | -4/Warlord | Visited the Vortex Lab 13913 | -4/Warlord | Warlord's base attacked by MAIN.C 13915 | -4/Warlord | Found Prototype Energy Cannon 13915 | -4/Warlord | Identified Vortex Cannon 13919 | -4/Warlord | Found Prototype Launcher 13977 | -4/Warlord | Found Prototype Reactor 13977 | -4/Warlord | Identified Vortex Chain Reactor 13985 | -4/Warlord | Found Prototype Processor 13985 | -4/Warlord | Identified Spectral Analyzer 13988 | -4/Warlord | Found Prototype Device 13988 | -4/Warlord | Identified System Purifier 13992 | -4/Warlord | Found Prototype Hackware 14041 | -4/Warlord | Identified Vortex Catalyst Activator 14069 | -4/Warlord | Spotted B-90 Cyclops 14263 | -4/Warlord | Warlord forces counterattacked 14301 | -4/Warlord | Spotted Striker 14349 | -4/Warlord | Spotted Striker 14351 | -4/Warlord | Destroyed 8 combat bots 14354 | -4/Warlord | Destroyed Striker 14370 | -4/Warlord | Entered Proximity Caves 14375 | -3/Proximity Caves | Destroyed 10 combat bots 14376 | -3/Proximity Caves | Spotter reported a threat 14411 | -3/Proximity Caves | Spotter reported a threat 14429 | -3/Proximity Caves | Spotter reported a threat 14447 | -3/Proximity Caves | Attracted the attention of an 0b10 checkpoint 14592 | -3/Proximity Caves | Discovered exit to Research (range 15) 14653 | -3/Proximity Caves | Build established: Mutant 14654 | -3/Proximity Caves | Entered Research 14654 | -3/Research | Evolved 2 slots: Utility x2 14655 | -3/Research | Identified exit to Quarantine 14864 | -3/Research | Repaired Lyr. Heavy Armor Plating 15287 | -3/Research | Found Unknown Launcher 15287 | -3/Research | Identified Fusion Bomb Launcher 15356 | -3/Research | Found Centrium Heavy Armor Plating 15378 | -3/Research | Discovered new exit (range 31) 15501 | -3/Research | Identified Transdimensional Reconstructor 15501 | -3/Research | Warped through subspace 15524 | -3/Research | Discovered new exit (range 21) 15670 | -3/Research | Lost 5 parts (1p1n2u1w) 16067 | -3/Research | Spotted B-86 Titan 16147 | -3/Research | System corruption reached 10% 16215 | -3/Research | Loaded intel: 5 recycling unit locations 16325 | -3/Research | Identified Ghost Barrier 16558 | -3/Research | Entered Quarantine 16595 | -3/Quarantine | Found Alien Artifact 16638 | -3/Quarantine | Found Alien Artifact 16659 | -3/Quarantine | Found Adv. Powered Armor 16660 | -3/Quarantine | Found Adv. Powered Armor 16670 | -3/Quarantine | Discovered new exit (range 37) 16671 | -3/Quarantine | Identified Phase Redirector 16671 | -3/Quarantine | Identified Terrabomb 16735 | -3/Quarantine | Found Alien Slashing Weapon 16735 | -3/Quarantine | Identified Sigix Broadsword 16783 | -3/Quarantine | Found Alien Artifact 16798 | -3/Quarantine | Entered Research 16798 | -2/Research | Evolved 2 slots: Propulsion x1, Weapon x1 17000 | -2/Research | Found Fusion Bomb Launcher 17195 | -2/Research | Loaded intel: 5 recycling unit locations 17246 | -2/Research | Discovered new exit (range 26) 17273 | -2/Research | Identified exit to Access 17390 | -2/Research | Discovered exit to Access (range 26) 17547 | -2/Research | Identified exit to Testing 17849 | -2/Research | Entered Testing 17880 | -2/Testing | Found Prototype Energy Gun 17880 | -2/Testing | Identified Tachyon Dispersion Ray 17919 | -2/Testing | Found Prototype Device 17919 | -2/Testing | Identified AEGIS Remote Shield 18102 | -2/Testing | Found Prototype Protection 18102 | -2/Testing | Identified Hvy. Regenerative Plating 18291 | -2/Testing | Destroyed PD-QIH0J0W75U 18366 | -2/Testing | Found Prototype Hackware 18366 | -2/Testing | Identified Exp. Hacking Suite 18483 | -2/Testing | Spotted Fortress 18485 | -2/Testing | Garrison activated, responded to threat 18519 | -2/Testing | Discovered new exit (range 6) 18519 | -2/Testing | Discovered new exit (range 7) 18521 | -2/Testing | Identified exit to Protoforge 18523 | -2/Testing | Entered Protoforge 18558 | -2/Protoforge | Spotted B-90 Cyclops 18625 | -2/Protoforge | Superfortress began startup sequence 18634 | -2/Protoforge | Forge Plexus network access discovered 18739 | -2/Protoforge | Spotted Decapitator 18739 | -2/Protoforge | Spotted Decapitator 18739 | -2/Protoforge | Spotted Decapitator 18739 | -2/Protoforge | Spotted Decapitator 18739 | -2/Protoforge | Spotted Decapitator 18744 | -2/Protoforge | Destroyed Decapitator 18744 | -2/Protoforge | Destroyed Decapitator 18744 | -2/Protoforge | Destroyed Decapitator 18746 | -2/Protoforge | Destroyed Decapitator 18750 | -2/Protoforge | Destroyed Decapitator 18760 | -2/Protoforge | Spotted Hotshot 18760 | -2/Protoforge | Spotted Hotshot 18899 | -2/Protoforge | Identified Dimensional Node Initializer 18899 | -2/Protoforge | Initialized slip node 18911 | -2/Protoforge | Spotted EXE-6 18911 | -2/Protoforge | Spotted EXE-6 18924 | -2/Protoforge | Spotted SKR-2 18924 | -2/Protoforge | Spotted SKR-2 18961 | -2/Protoforge | Spotted EXE-6 18961 | -2/Protoforge | Spotted EXE-6 18972 | -2/Protoforge | Spotted SKR-2 18983 | -2/Protoforge | UFD initiated attack on Protoforge 18983 | -2/Protoforge | Loaded intel: 3 recycling unit locations 19015 | -2/Protoforge | Scraphulk reinforcements arrived? 19019 | -2/Protoforge | Optimus greeted in Protoforge 19026 | -2/Protoforge | Found Cep. XC Strikerail 19028 | -2/Protoforge | Found Cep. XC Strikerail 19030 | -2/Protoforge | Found Cep. XC Strikerail 19066 | -2/Protoforge | Fabricated Hcp. Storage Unit (x1) 19073 | -2/Protoforge | Lost 3 allies 19103 | -2/Protoforge | Used Terrabomb 19122 | -2/Protoforge | Met 7R-MNS 19144 | -2/Protoforge | Found UFD Drillbomb 19163 | -2/Protoforge | Spotted AP7-3 19231 | -2/Protoforge | Spotted Hotshot 19316 | -2/Protoforge | UFD reported confirmed Drillbomb installation 19371 | -2/Protoforge | UFD reported confirmed Drillbomb installation 19423 | -2/Protoforge | Destroyed B-90 Cyclops 19457 | -2/Protoforge | Spotted Executioner 19477 | -2/Protoforge | Identified Subatomic Replicator 19477 | -2/Protoforge | Used Subatomic Replicator to replicate UFD Drillbomb 19487 | -2/Protoforge | Installed UFD Drillbomb at designated target 19487 | -2/Protoforge | UFD reported confirmed Drillbomb installation 19509 | -2/Protoforge | Installed UFD Drillbomb at designated target 19509 | -2/Protoforge | UFD reported confirmed Drillbomb installation 19575 | -2/Protoforge | Spotted Executioner 19683 | -2/Protoforge | Spotted 02F09-K 19717 | -2/Protoforge | Found UFD Drillbomb 19807 | -2/Protoforge | P-80 Master assimilated allied 02F68-D 19841 | -2/Protoforge | Lost 3 allies 19856 | -2/Protoforge | Spotted Executioner 19872 | -2/Protoforge | Found Scrap Suit 19880 | -2/Protoforge | Spotted Striker 19887 | -2/Protoforge | Spotted Striker 19891 | -2/Protoforge | Spotted Executioner 19924 | -2/Protoforge | Found UFD Drillbomb 19948 | -2/Protoforge | Installed UFD Drillbomb at designated target 19948 | -2/Protoforge | UFD reported confirmed Drillbomb installation 19952 | -2/Protoforge | Lost 11 allies 19956 | -2/Protoforge | Found UFD Drillbomb 19975 | -2/Protoforge | Installed UFD Drillbomb at designated target 19975 | -2/Protoforge | UFD reported confirmed Drillbomb installation 19998 | -2/Protoforge | Found UFD Drillbomb 20000 | -2/Protoforge | Spotted Executioner 20000 | -2/Protoforge | Spotted Striker 20070 | -2/Protoforge | Lost 9 allies 20149 | -2/Protoforge | Installed UFD Drillbomb at designated target 20149 | -2/Protoforge | UFD reported confirmed Drillbomb installation 20170 | -2/Protoforge | Spotted Striker 20172 | -2/Protoforge | Spotted Striker 20173 | -2/Protoforge | Spotted Striker 20175 | -2/Protoforge | Spotted Striker 20179 | -2/Protoforge | Destroyed Striker 20183 | -2/Protoforge | Destroyed Striker 20199 | -2/Protoforge | Destroyed Striker 20214 | -2/Protoforge | System corruption reached 10% 20220 | -2/Protoforge | Spotted Striker 20224 | -2/Protoforge | Build established: Scavenger-Scrapper 20280 | -2/Protoforge | Found Prototype Device 20280 | -2/Protoforge | Identified Adv. Kinecellerator 20291 | -2/Protoforge | P-80 Master assimilated allied 02FAK-D 20300 | -2/Protoforge | Spotted Striker 20303 | -2/Protoforge | Spotted Executioner 20307 | -2/Protoforge | Found UFD Drillbomb 20318 | -2/Protoforge | Found Scrap Suit 20337 | -2/Protoforge | Found 0bPrime Scrap Suit 20358 | -2/Protoforge | Lost 7 allies 20423 | -2/Protoforge | Spotted Hotshot 20424 | -2/Protoforge | Spotted Hotshot 20478 | -2/Protoforge | Spotted Executioner 20479 | -2/Protoforge | Spotted Striker 20485 | -2/Protoforge | Spotted Striker 20497 | -2/Protoforge | Destroyed Executioner 20504 | -2/Protoforge | Destroyed Striker 20510 | -2/Protoforge | Spotted Striker 20516 | -2/Protoforge | Destroyed Striker 20534 | -2/Protoforge | Destroyed Striker 20538 | -2/Protoforge | Lost 8 allies 20541 | -2/Protoforge | Spotted Striker 20543 | -2/Protoforge | Spotted Striker 20554 | -2/Protoforge | Spotted Striker 20555 | -2/Protoforge | Spotted Executioner 20570 | -2/Protoforge | Destroyed 10 combat bots 20589 | -2/Protoforge | Spotted Executioner 20595 | -2/Protoforge | Spotted Executioner 20605 | -2/Protoforge | Destroyed Executioner 20648 | -2/Protoforge | Spotted Executioner 20666 | -2/Protoforge | Spotted Executioner 20666 | -2/Protoforge | Spotted Executioner 20668 | -2/Protoforge | Spotted Striker 20695 | -2/Protoforge | Destroyed Executioner 20697 | -2/Protoforge | Destroyed Executioner 20731 | -2/Protoforge | Installed UFD Drillbomb at designated target 20731 | -2/Protoforge | UFD reported confirmed Drillbomb installation 20735 | -2/Protoforge | Found UFD Drillbomb 20741 | -2/Protoforge | Spotted Executioner 20741 | -2/Protoforge | Spotted Executioner 20758 | -2/Protoforge | Discovered exit to Access (range 6) 20758 | -2/Protoforge | Spotted Executioner 20758 | -2/Protoforge | Spotted Striker 20768 | -2/Protoforge | Core integrity fell below 50% 20773 | -2/Protoforge | Destroyed Striker 20777 | -2/Protoforge | Destroyed Executioner 20792 | -2/Protoforge | Spotted Executioner 20804 | -2/Protoforge | Destroyed 7 combat bots 20812 | -2/Protoforge | Installed UFD Drillbomb at designated target 20812 | -2/Protoforge | UFD reported confirmed Drillbomb installation 20840 | -2/Protoforge | Spotted Striker 20840 | -2/Protoforge | Spotted Executioner 20840 | -2/Protoforge | Spotted Striker 20844 | -2/Protoforge | P-80 Master assimilated allied RR-VJ1(E) 20848 | -2/Protoforge | Spotted Executioner 20859 | -2/Protoforge | Found UFD Drillbomb 20865 | -2/Protoforge | Spotted Striker 20869 | -2/Protoforge | Spotted Striker 20889 | -2/Protoforge | Lost 4 parts (1u3w) 20894 | -2/Protoforge | Found 0bPrime Scrap Suit 20899 | -2/Protoforge | Found Cep. XC Strikerail 20900 | -2/Protoforge | Lost 7 allies 20923 | -2/Protoforge | Destroyed Executioner 20957 | -2/Protoforge | Destroyed Striker 20970 | -2/Protoforge | Spotted Striker 20972 | -2/Protoforge | Spotted Striker 20978 | -2/Protoforge | Lost 8 allies 21039 | -2/Protoforge | Spotted Executioner 21041 | -2/Protoforge | Spotted Striker 21050 | -2/Protoforge | Spotted Executioner 21052 | -2/Protoforge | Spotted Executioner 21072 | -2/Protoforge | Destroyed Executioner 21094 | -2/Protoforge | Destroyed Executioner 21098 | -2/Protoforge | Found 0bPrime Scrap Suit 21118 | -2/Protoforge | Lost 9 allies 21225 | -2/Protoforge | Installed UFD Drillbomb at designated target 21225 | -2/Protoforge | UFD reported confirmed Drillbomb installation 21226 | -2/Protoforge | UFD began Drillbomb countdown 21326 | *** | Defending 0bPrime! Last Messages --------------- 21290_ System corrupted: Matter fused (-9). 21308_ System corrupted: Matter fused (-10). 21310_ Discarded Adv. Signal Interpreter. 21316_ 0bP_NET: LISTEN AND RECITE! 21317_ 0bP_NET: Dude, not now. 21318_ 0bP_NET: Oh c'mon, can't we all just count together? 21319_ 0bP_NET: Fine. T-7, in case you lost count already. 21320_ 0bP_NET: Before the zero cycle! 21321_ 0bP_NET: Dammit not like that... 21322_ 0bP_NET: Okay how about this, the iron fist is going to be less iron in T-4. 21323_ 0bP_NET: That's a little better. 21324_ 0bP_NET: PRAISE BE TO GREAT NUT! 21325_ System corrupted: IFF burst signal emitted. 21325_ Activated shielding mode. 21325_ 0bP_NET: Dammit, I said..., ugh, T-1 folks! Take cover! Map ----- +----------------------------------------------------+ | ?????????????????????????????????????????????????? | | ?????????????????????????????????????????????????? | | ?????????????????????????????????????????????????? | | ##########??????????????????*?*??????????????????? | | ##########???##########??????????????????????????? | | ????????##???##########??????????????????????????? | | ????????##???##??????##??????????????????????????? | | ????????##???##??????##??????????????????????????? | | ????????#######??????##??????????????????????????? | | ###+###########??????##??????????????????????????? | | +??????##??????????????????????????? | | #??????##??????????????????????????? | | ### #+##+####??????????????????????????? | | ## ####??????????????????????????? | | ##+##+###"#### ##????????????????????????????? | | # ##### ##????????????????????????????? | | # """ "##?## ##????????????????????????????? | | # """ "##?##^ ##????????????????????????????? | | + """ "##?## ##????????????????????????????? | | # """" T##?## ^ ##????????????????????????????? | | # """" "##?##^ ^##????????????????????????????? | | # """" "##?## ##????????????????????????????? | | #" "##?## ##????????????????????????????? | | ## ##### #########?????????????????????? | | ######+##+##### ## # #?????????????????????? | | ; @ #?????????????????????? | | ; #?????????????????????? | | # #######?????????????????????? | | ###??????????????##########???? | | ######+###########???????????????##########???? | | ###### ###??##########???## ##???? | | ##?## ##???##########???## ##???? | | #####"%= ##???## ##???## """###### | | ###### ##???## """" ##???## """# | | + ####?## """" ######" """ # | | ###### # #?## """" ####### # ## | | ###### # #### """" # % # #"# ## | | ###### # ## " "%" | | ####""####+#"""""" "## " " " | | "%" ! "" # " " | | " %*= """ # ### ## ###" | | " %[=%% % ########## | | "%" *!!==/=! ######## | | "#" =" &[=*%!%! "" ########## | | # # =%# !#!![[=%! ########## | | # *!" #===%%*#### ###### | | # =!!# # !!%!= ######???# """" # | | ## !!%=# = [!=# #?### """" # | | # %!!=* # %=!*!!! ####### """" # | | # *%!%[[! [![!%[=![* " ##?"""" # | +----------------------------------------------------+ Best States ------------- Heat Dissipation 80 Energy Generation 65 Energy Capacity 700 Matter Stores 300 Matter Capacity 300 Sight Range 24 Robot Scan Range 18 Terrain Scan Range 24 Terrain Scan Density 10 Jamming Range 16 Corruption Containment 12 Armor Coverage 825 Weapon Shielding 90 Melee Speed Boost 30 Evasion (%) 65 Target Analysis 8 Core Analysis 6 Recoil Reduction 3 Kinecelleration 50 Offensive Hacking 30 Defensive Hacking 20 Trap Extractor Capacity 8 Item Schematics ----------------- Hcp. Storage Unit | -10/Materials | Hacked Assault Drone Bay | -5/Zhirov | Free Exp. Optical Array | -5/Zhirov | Free Exp. Heat Sink | -5/Zhirov | Free Imp. Arc Thrower | -5/Zhirov | Free Robot Schematics ------------------ None Fabricated ------------ Hcp. Storage Unit | x1 | -2/Protoforge Repaired ---------- Lyr. Heavy Armor Plating | 49% | -3/Research Alien Tech Used ----------------- Integrated Reactor Transdimensional Reconstructor Sigix Broadsword Dimensional Node Initializer Terrabomb Subatomic Replicator Achievements -------------- None Challenges ------------ None Game ------ Seed TransdimensionalMiningGun Manual? 0 Play Time 17:57:18 Cumulative 643.4 hours Start 2025.06.10 @ 08:14:46 End 2025.07.29 @ 11:59:01 Sessions 13 Manual Loads 0 Difficulty Rogue Special Mode None Game No. 169 Rogue 169 Adventurer 0 Explorer 0 Win Type 9 Total 47 Types 32/0/6/3/1/1/1/2/0/1 Lore% 50 Gallery% 76 Achievement% 86 Wizard Run 0 Options --------- Layout 2 ASCII 0 Keyboard 0 Movement Numpad Keybinds 0 Fullscreen 2 Font 24/Smallcaps Map View 50x44 Zoom Use 0% Tactical HUD 1 Map Filters NONE Filters NONE Steam 1 RUN: c6c3d844-c03f-4b2e-bfac-aff272fe7319